{"text_format":"3","workbook":"xlsx","n_sheets":2,"sheets":["Plantilla Presupuesto","Plantilla Ejecución "],"not_rendered":{"images":3,"defined_names":2},"read":"whole","date_system":"1900"}

{"sheet":"Plantilla Presupuesto","index":0,"n_rows":97,"n_cols":5,"rows_kept":97,"merged":[[0,1,0,3],[1,1,1,3],[2,1,2,3],[3,1,3,3],[4,1,4,3],[5,1,5,3],[6,1,6,3]]}
[null,"Ministerio de Medio Ambiente y Recusos Naturales "]
[null,"Museo Nacional de Historia Natural "]
[null," Prof. Eugenio de  Jesus  Marcano"]
[null,"Año 2023"]
[]
[null,"Presupuesto de Gastos y Aplicaciones Financieras "]
[null,"En RD$"]
[]
[null,"Detalle","Presupuesto Aprobado","Presupuesto Modificado"]
[null,"2 - GASTOS"]
[null,"2.1 - REMUNERACIONES Y CONTRIBUCIONES",{"$f":"+C12+C13+C14+C15+C16","v":{"v":42331315,"d":"42,331,315.00"}}]
[null,"2.1.1 - REMUNERACIONES",{"v":34529478,"d":"34,529,478"}]
[null,"2.1.2 - SOBRESUELDOS",{"v":3197055,"d":"3,197,055"}]
[null,"2.1.3 - DIETAS Y GASTOS DE REPRESENTACIÓN",0]
[null,"2.1.4 - GRATIFICACIONES Y BONIFICACIONES",0]
[null,"2.1.5 - CONTRIBUCIONES A LA SEGURIDAD SOCIAL",{"v":4604782,"d":"4,604,782"}]
[null,"2.2 - CONTRATACIÓN DE SERVICIOS",{"$f":"+C18+C19+C20+C21+C22+C23+C24+C25+C26","v":{"v":12929584,"d":"12,929,584"}}]
[null,"2.2.1 - SERVICIOS BÁSICOS",{"v":6246964,"d":"6,246,964"}]
[null,"2.2.2 - PUBLICIDAD, IMPRESIÓN Y ENCUADERNACIÓN",{"v":479678,"d":"479,678"}]
[null,"2.2.3 - VIÁTICOS",{"v":360000,"d":"360,000"}]
[null,"2.2.4 - TRANSPORTE Y ALMACENAJE",{"v":12000,"d":"12,000"}]
[null,"2.2.5 - ALQUILERES Y RENTAS",{"v":350000,"d":"350,000"}]
[null,"2.2.6 - SEGUROS",{"v":616180,"d":"616,180"}]
[null,"2.2.7 - SERVICIOS DE CONSERVACIÓN, REPARACIONES MENORES E INSTALACIONES TEMPORALES",{"v":2481521,"d":"2,481,521"}]
[null,"2.2.8 - OTROS SERVICIOS NO INCLUIDOS EN CONCEPTOS ANTERIORES",{"v":1853241,"d":"1,853,241"}]
[null,"2.2.9 - OTRAS CONTRATACIONES DE SERVICIOS",{"v":530000,"d":"530,000"}]
[null,"2.3 - MATERIALES Y SUMINISTROS",{"$f":"+C28+C29+C30+C31+C32+C33+C34+C35+C36","v":{"v":2317916,"d":"2,317,916"}}]
[null,"2.3.1 - ALIMENTOS Y PRODUCTOS AGROFORESTALES",{"v":38500,"d":"38,500"}]
[null,"2.3.2 - TEXTILES Y VESTUARIOS",{"v":75000,"d":"75,000"}]
[null,"2.3.3 - PRODUCTOS DE PAPEL, CARTÓN E IMPRESOS",{"v":80000,"d":"80,000"}]
[null,"2.3.4 - PRODUCTOS FARMACÉUTICOS",{"v":15000,"d":"15,000"}]
[null,"2.3.5 - PRODUCTOS DE CUERO, CAUCHO Y PLÁSTICO",{"v":50000,"d":"50,000"}]
[null,"2.3.6 - PRODUCTOS DE MINERALES, METÁLICOS Y NO METÁLICOS",{"v":15000,"d":"15,000"}]
[null,"2.3.7 - COMBUSTIBLES, LUBRICANTES, PRODUCTOS QUÍMICOS Y CONEXOS",{"v":1479000,"d":"1,479,000"}]
[null,"2.3.8 - GASTOS QUE SE ASIGNARÁN DURANTE EL EJERCICIO (ART. 32 Y 33 LEY 423-06)",0]
[null,"2.3.9 - PRODUCTOS Y ÚTILES VARIOS",{"v":565416,"d":"565,416"}]
[null,"2.4 - TRANSFERENCIAS CORRIENTES"]
[null,"2.4.1 - TRANSFERENCIAS CORRIENTES AL SECTOR PRIVADO"]
[null,"2.4.2 - TRANSFERENCIAS CORRIENTES AL  GOBIERNO GENERAL NACIONAL"]
[null,"2.4.3 - TRANSFERENCIAS CORRIENTES A GOBIERNOS GENERALES LOCALES"]
[null,"2.4.4 - TRANSFERENCIAS CORRIENTES A EMPRESAS PÚBLICAS NO FINANCIERAS"]
[null,"2.4.5 - TRANSFERENCIAS CORRIENTES A INSTITUCIONES PÚBLICAS FINANCIERAS"]
[null,"2.4.7 - TRANSFERENCIAS CORRIENTES AL SECTOR EXTERNO"]
[null,"2.4.9 - TRANSFERENCIAS CORRIENTES A OTRAS INSTITUCIONES PÚBLICAS"]
[null,"2.5 - TRANSFERENCIAS DE CAPITAL"]
[null,"2.5.1 - TRANSFERENCIAS DE CAPITAL AL SECTOR PRIVADO"]
[null,"2.5.2 - TRANSFERENCIAS DE CAPITAL AL GOBIERNO GENERAL  NACIONAL"]
[null,"2.5.3 - TRANSFERENCIAS DE CAPITAL A GOBIERNOS GENERALES LOCALES"]
[null,"2.5.4 - TRANSFERENCIAS DE CAPITAL  A EMPRESAS PÚBLICAS NO FINANCIERAS"]
[null,"2.5.5 - TRANSFERENCIAS DE CAPITAL A INSTITUCIONES PÚBLICAS FINANCIERAS"]
[null,"2.5.6 - TRANSFERENCIAS DE CAPITAL AL SECTOR EXTERNO"]
[null,"2.5.9 - TRANSFERENCIAS DE CAPITAL A OTRAS INSTITUCIONES PÚBLICAS"]
[null,"2.6 - BIENES MUEBLES, INMUEBLES E INTANGIBLES",{"$f":"+C54+C55+C56+C57+C58+C60+C59+C61+C62","v":{"v":3421185,"d":"3,421,185"}}]
[null,"2.6.1 - MOBILIARIO Y EQUIPO",{"v":2521185,"d":"2,521,185"}]
[null,"2.6.2 - MOBILIARIO Y EQUIPO EDUCACIONAL Y RECREATIVO",{"v":200000,"d":"200,000"}]
[null,"2.6.3 - EQUIPO E INSTRUMENTAL, CIENTÍFICO Y LABORATORIO"]
[null,"2.6.4 - VEHÍCULOS Y EQUIPO DE TRANSPORTE, TRACCIÓN Y ELEVACIÓN"]
[null,"2.6.5 - MAQUINARIA, OTROS EQUIPOS Y HERRAMIENTAS",{"v":350000,"d":"350,000"}]
[null,"2.6.6 - EQUIPOS DE DEFENSA Y SEGURIDAD",{"v":20000,"d":"20,000"}]
[null,"2.6.7 - ACTIVOS BIÓLOGICOS CULTIVABLES"]
[null,"2.6.8 - BIENES INTANGIBLES",{"v":250000,"d":"250,000"}]
[null,"2.6.9 - EDIFICIOS, ESTRUCTURAS, TIERRAS, TERRENOS Y OBJETOS DE VALOR",{"v":80000,"d":"80,000"}]
[null,"2.7 - OBRAS"]
[null,"2.7.1 - OBRAS EN EDIFICACIONES"]
[null,"2.7.2 - INFRAESTRUCTURA"]
[null,"2.7.3 - CONSTRUCCIONES EN BIENES CONCESIONADOS"]
[null,"2.7.4 - GASTOS QUE SE ASIGNARÁN DURANTE EL EJERCICIO PARA INVERSIÓN (ART. 32 Y 33 LEY 423-06)"]
[null,"2.8 - ADQUISICION DE ACTIVOS FINANCIEROS CON FINES DE POLÍTICA"]
[null,"2.8.1 - CONCESIÓN DE PRESTAMOS"]
[null,"2.8.2 - ADQUISICIÓN DE TÍTULOS VALORES REPRESENTATIVOS DE DEUDA"]
[null,"2.9 - GASTOS FINANCIEROS"]
[null,"2.9.1 - INTERESES DE LA DEUDA PÚBLICA INTERNA"]
[null,"2.9.2 - INTERESES DE LA DEUDA PUBLICA EXTERNA"]
[null,"2.9.4 - COMISIONES Y OTROS GASTOS BANCARIOS DE LA DEUDA PÚBLICA"]
[null,"Total Gastos",{"$f":"+C11+C17+C27+C53","v":{"v":61000000,"d":"61,000,000"}}]
[]
[null,"4 - APLICACIONES FINANCIERAS"]
[null,"4.1 - INCREMENTO DE ACTIVOS FINANCIEROS",{"$f":"+C79+C80","v":0}]
[null,"4.1.1 - INCREMENTO DE ACTIVOS FINANCIEROS CORRIENTES",0]
[null,"4.1.2 - INCREMENTO DE ACTIVOS FINANCIEROS NO CORRIENTES",0]
[null,"4.2 - DISMINUCIÓN DE PASIVOS",{"$f":"+C82+C83","v":0}]
[null,"4.2.1 - DISMINUCIÓN DE PASIVOS CORRIENTES",0]
[null,"4.2.2 - DISMINUCIÓN DE PASIVOS NO CORRIENTES",0]
[null,"4.3 - DISMINUCIÓN DE FONDOS DE TERCEROS",{"$f":"+C85","v":0}]
[null,"4.3.5 - DISMINUCIÓN DEPÓSITOS FONDOS DE TERCEROS"]
[null,"TOTAL APLICACIONES FINANCIERAS"]
[]
[null,"TOTAL GASTOS Y APLICACIONES FINANCIERAS",{"$f":"+C86+C75","v":{"v":61000000,"d":"61,000,000"}}]
[null,"Fuente: [fuente]"]
[]
[]
[]
[]
[]
["Esthel Mora",{"$nulls":3},"Nestina Contreras"]
["Preparo por:",{"$nulls":3},"Revisado por:"]
["Analista de Presupuesto",{"$nulls":3},"Encargada Admistrativa Financiera"]

{"sheet":"Plantilla Ejecución ","index":1,"n_rows":97,"n_cols":27,"rows_kept":97,"merged":[[0,0,0,13],[1,0,1,13],[2,0,2,13],[3,0,3,13],[4,0,4,13]]}
["Ministerio de Medio Ambiente",{"$nulls":14},"Notas:"]
["Museo Nacional de Historia Natural \"Prof. Eugenio de Jesus Marcano",{"$nulls":14},"1. Gasto devengado. "]
["Año 2023",{"$nulls":14},"2. Se presenta el gasto por mes; cada mes se debe actualizar el gasto devengado de los meses anteriores. "]
["Ejecución de Gastos y Aplicaciones Financieras ",{"$nulls":14},"3. Se presenta la clasificación objetal del gasto al nivel de cuenta. "]
["En RD$",{"$nulls":14},"4. Fecha de imputación: último día del mes analizado"]
[{"$nulls":15},"5. Fecha de registro: el día 10 del mes siguiente al mes analizado"]
["Detalle","Total ","Enero ","Febrero ","Marzo","Abril","Mayo","Junio","Julio","Agosto","Septiembre","Octubre ","Noviembre","Diciembre",{"$nulls":11},{"$f":"SUM(R8:Z8)","v":{"v":11.029108875781253,"d":"11.03"}},{"$f":"+Z7+AA8","v":{"v":13.989108875781252,"d":"13.99"}}]
["2 - GASTOS",{"$nulls":16},{"v":1,"d":"1.00"},1.05,{"$f":"+S8*1.05","v":{"v":1.1025,"d":"1.10"}},{"v":1.1576250000000001,"d":"1.16"},{"v":1.2155062500000002,"d":"1.22"},{"v":1.2762815625000004,"d":"1.28"},{"v":1.3400956406250004,"d":"1.34"},{"v":1.4071004226562505,"d":"1.41"},1.48,{"$f":"+Z8*2","v":2.96}]
["2.1 - REMUNERACIONES Y CONTRIBUCIONES",null,{"$f":"+C10+C11+C12+C14","v":{"v":2601738.16,"d":"2,601,738.16"}},{"$f":"SUM(D10:D14)","v":{"v":2651997.4899999998,"d":"2,651,997.49"}},{"$f":"SUM(E10:E14)","v":{"v":2799237.8699999996,"d":"2,799,237.87"}},{"$f":"SUM(F10:F14)","v":{"v":3335736.23,"d":"3,335,736.23"}}]
["2.1.1 - REMUNERACIONES",null,{"v":2216780,"d":"2,216,780.00"},{"v":2267780,"d":"2,267,780.00"},{"v":2400030,"d":"2,400,030.00"},{"v":2429628.52,"d":"2,429,628.52"}]
["2.1.2 - SOBRESUELDOS",null,{"v":49695.68,"d":"49,695.68"},{"v":41418.53,"d":"41,418.53"},{"v":36827.28,"d":"36,827.28"},{"v":538048.78,"d":"538,048.78"}]
["2.1.3 - DIETAS Y GASTOS DE REPRESENTACIÓN",null,0,0,0]
["2.1.4 - GRATIFICACIONES Y BONIFICACIONES",null,0,0,0]
["2.1.5 - CONTRIBUCIONES A LA SEGURIDAD SOCIAL",null,{"v":335262.48,"d":"335,262.48"},{"v":342798.96,"d":"342,798.96"},{"v":362380.59,"d":"362,380.59"},{"v":368058.93,"d":"368,058.93"}]
["2.2 - CONTRATACIÓN DE SERVICIOS",null,{"$f":"+C16+C17+C18+C19+C20+C21+C22+C23+C24","v":{"v":679099.86,"d":"679,099.86"}},{"$f":"+D16+D17+D18+D19+D20+D21+D22+D23+D24","v":{"v":420520.99,"d":"420,520.99"}},{"$f":"+E16+E17+E18+E19+E20+E21+E22+E23+E24","v":{"v":1988387.4,"d":"1,988,387.40"}},{"$f":"+F16+F17+F18+F19+F20+F21+F22+F23+F24","v":{"v":1242987.41,"d":"1,242,987.41"}},0]
["2.2.1 - SERVICIOS BÁSICOS",null,{"v":413256.96,"d":"413,256.96"},{"v":163441.44,"d":"163,441.44"},{"v":1191782.65,"d":"1,191,782.65"},{"v":596774.49,"d":"596,774.49"}]
["2.2.2 - PUBLICIDAD, IMPRESIÓN Y ENCUADERNACIÓN",null,{"v":173755,"d":"173,755.00"},0,{"v":94477.88,"d":"94,477.88"}]
["2.2.3 - VIÁTICOS",null,0,0,0,{"v":219500,"d":"219,500.00"}]
["2.2.4 - TRANSPORTE Y ALMACENAJE",null,0,0,0]
["2.2.5 - ALQUILERES Y RENTAS",null,0,{"v":57364.55,"d":"57,364.55"},{"v":196976.64,"d":"196,976.64"}]
["2.2.6 - SEGUROS",null,{"v":42527.9,"d":"42,527.90"},{"v":199715,"d":"199,715.00"},{"v":47555.23,"d":"47,555.23"},{"v":56577.71,"d":"56,577.71"}]
["2.2.7 - SERVICIOS DE CONSERVACIÓN, REPARACIONES MENORES E INSTALACIONES TEMPORALES",null,0,0,{"v":405035,"d":"405,035.00"},{"v":195189,"d":"195,189.00"}]
["2.2.8 - OTROS SERVICIOS NO INCLUIDOS EN CONCEPTOS ANTERIORES",null,{"v":49560,"d":"49,560.00"},0,{"v":52560,"d":"52,560.00"},{"v":106948.71,"d":"106,948.71"}]
["2.2.9 - OTRAS CONTRATACIONES DE SERVICIOS",null,0,0,0,{"v":67997.5,"d":"67,997.50"}]
["2.3 - MATERIALES Y SUMINISTROS",null,{"$f":"SUM(C26:C34)","v":{"v":191974.2,"d":"191,974"}},{"$f":"SUM(D26:D34)","v":{"v":320574.38,"d":"320,574"}},{"$f":"SUM(E26:E34)","v":{"v":515917,"d":"515,917"}},{"$f":"SUM(F26:F34)","v":{"v":553026.64,"d":"553,027"}}]
["2.3.1 - ALIMENTOS Y PRODUCTOS AGROFORESTALES",null,{"v":54238.7,"d":"54,239"},null,{"v":98455.8,"d":"98,455.80"},{"v":144455.18,"d":"144,455.18"}]
["2.3.2 - TEXTILES Y VESTUARIOS",null,0,0,{"v":43506.6,"d":"43,506.60"},{"v":139328.5,"d":"139,328.50"}]
["2.3.3 - PRODUCTOS DE PAPEL, CARTÓN E IMPRESOS",null,0,{"v":21633.4,"d":"21,633.40"},{"v":38122.97,"d":"38,122.97"},0]
["2.3.4 - PRODUCTOS FARMACÉUTICOS",null,0,0,0,{"v":5015,"d":"5,015.00"}]
["2.3.5 - PRODUCTOS DE CUERO, CAUCHO Y PLÁSTICO",null,0,0,0,{"v":112867,"d":"112,867.00"}]
["2.3.6 - PRODUCTOS DE MINERALES, METÁLICOS Y NO METÁLICOS",null,0,{"v":1785,"d":"1,785.00"},0,{"v":7174.4,"d":"7,174.40"}]
["2.3.7 - COMBUSTIBLES, LUBRICANTES, PRODUCTOS QUÍMICOS Y CONEXOS",null,0,{"v":136113,"d":"136,113.00"},0,{"v":144186.56,"d":"144,186.56"}]
["2.3.8 - GASTOS QUE SE ASIGNARÁN DURANTE EL EJERCICIO (ART. 32 Y 33 LEY 423-06)",null,0,0,0]
["2.3.9 - PRODUCTOS Y ÚTILES VARIOS",null,{"v":137735.5,"d":"137,736"},{"v":161042.98,"d":"161,042.98"},{"v":335831.63,"d":"335,831.63"}]
["2.4 - TRANSFERENCIAS CORRIENTES",null,null,{"$f":"SUM(D36:D42)","v":0},{"$f":"SUM(E36:E42)","v":0}]
["2.4.1 - TRANSFERENCIAS CORRIENTES AL SECTOR PRIVADO"]
["2.4.2 - TRANSFERENCIAS CORRIENTES AL  GOBIERNO GENERAL NACIONAL"]
["2.4.3 - TRANSFERENCIAS CORRIENTES A GOBIERNOS GENERALES LOCALES"]
["2.4.4 - TRANSFERENCIAS CORRIENTES A EMPRESAS PÚBLICAS NO FINANCIERAS"]
["2.4.5 - TRANSFERENCIAS CORRIENTES A INSTITUCIONES PÚBLICAS FINANCIERAS"]
["2.4.7 - TRANSFERENCIAS CORRIENTES AL SECTOR EXTERNO"]
["2.4.9 - TRANSFERENCIAS CORRIENTES A OTRAS INSTITUCIONES PÚBLICAS"]
["2.5 - TRANSFERENCIAS DE CAPITAL"]
["2.5.1 - TRANSFERENCIAS DE CAPITAL AL SECTOR PRIVADO"]
["2.5.2 - TRANSFERENCIAS DE CAPITAL AL GOBIERNO GENERAL  NACIONAL"]
["2.5.3 - TRANSFERENCIAS DE CAPITAL A GOBIERNOS GENERALES LOCALES"]
["2.5.4 - TRANSFERENCIAS DE CAPITAL  A EMPRESAS PÚBLICAS NO FINANCIERAS"]
["2.5.5 - TRANSFERENCIAS DE CAPITAL A INSTITUCIONES PÚBLICAS FINANCIERAS"]
["2.5.6 - TRANSFERENCIAS DE CAPITAL AL SECTOR EXTERNO"]
["2.5.9 - TRANSFERENCIAS DE CAPITAL A OTRAS INSTITUCIONES PÚBLICAS"]
["2.6 - BIENES MUEBLES, INMUEBLES E INTANGIBLES",null,{"$f":"SUM(C52:C59)","v":{"v":23364,"d":"23,364"}},{"$f":"SUM(D52:D59)","v":{"v":125146,"d":"125,146"}},{"$f":"SUM(E52:E59)","v":{"v":202270.58000000002,"d":"202,271"}},{"$f":"SUM(F52:F59)","v":{"v":285761.98,"d":"285,762"}}]
["2.6.1 - MOBILIARIO Y EQUIPO",null,null,{"v":125146,"d":"125,146.00"},{"v":101970.58,"d":"101,970.58"},{"v":285761.98,"d":"285,761.98"}]
["2.6.2 - MOBILIARIO Y EQUIPO EDUCACIONAL Y RECREATIVO"]
["2.6.3 - EQUIPO E INSTRUMENTAL, CIENTÍFICO Y LABORATORIO"]
["2.6.4 - VEHÍCULOS Y EQUIPO DE TRANSPORTE, TRACCIÓN Y ELEVACIÓN"]
["2.6.5 - MAQUINARIA, OTROS EQUIPOS Y HERRAMIENTAS",null,{"v":23364,"d":"23,364"},null,{"v":100300,"d":"100,300.00"}]
["2.6.6 - EQUIPOS DE DEFENSA Y SEGURIDAD"]
["2.6.7 - ACTIVOS BIÓLOGICOS CULTIVABLES"]
["2.6.8 - BIENES INTANGIBLES"]
["2.6.9 - EDIFICIOS, ESTRUCTURAS, TIERRAS, TERRENOS Y OBJETOS DE VALOR"]
["2.7 - OBRAS",null,{"$f":"SUM(C62:C65)","v":0},0,0]
["2.7.1 - OBRAS EN EDIFICACIONES"]
["2.7.2 - INFRAESTRUCTURA"]
["2.7.3 - CONSTRUCCIONES EN BIENES CONCESIONADOS"]
["2.7.4 - GASTOS QUE SE ASIGNARÁN DURANTE EL EJERCICIO PARA INVERSIÓN (ART. 32 Y 33 LEY 423-06)"]
["2.8 - ADQUISICION DE ACTIVOS FINANCIEROS CON FINES DE POLÍTICA",null,{"$f":"SUM(C67:C68)","v":0},0,0]
["2.8.1 - CONCESIÓN DE PRESTAMOS"]
["2.8.2 - ADQUISICIÓN DE TÍTULOS VALORES REPRESENTATIVOS DE DEUDA"]
["2.9 - GASTOS FINANCIEROS",null,{"$f":"SUM(C70:C72)","v":0}]
["2.9.1 - INTERESES DE LA DEUDA PÚBLICA INTERNA"]
["2.9.2 - INTERESES DE LA DEUDA PUBLICA EXTERNA"]
["2.9.4 - COMISIONES Y OTROS GASTOS BANCARIOS DE LA DEUDA PÚBLICA"]
["Total Gastos",null,{"$f":"+C69+C66+C61+C51+C43+C35+C25+C15+C9","v":{"v":3496176.22,"d":"3,496,176.22"}},{"$f":"+D69+D66+D61+D51+D43+D35+D25+D15+D9","v":{"v":3518238.86,"d":"3,518,238.86"}},{"$f":"+E69+E66+E61+E51+E43+E35+E25+E15+E9","v":{"v":5505812.85,"d":"5,505,812.85"}},{"$f":"+F69+F66+F61+F51+F43+F35+F25+F15+F9","v":{"v":5417512.26,"d":"5,417,512.26"}}]
[]
["4 - APLICACIONES FINANCIERAS"]
["4.1 - INCREMENTO DE ACTIVOS FINANCIEROS",null,{"$f":"SUM(C77:C78)","v":0},0]
["4.1.1 - INCREMENTO DE ACTIVOS FINANCIEROS CORRIENTES",null,0,0]
["4.1.2 - INCREMENTO DE ACTIVOS FINANCIEROS NO CORRIENTES",null,0,0]
["4.2 - DISMINUCIÓN DE PASIVOS",null,{"$f":"+C80+C81","v":0},0]
["4.2.1 - DISMINUCIÓN DE PASIVOS CORRIENTES",null,0,0]
["4.2.2 - DISMINUCIÓN DE PASIVOS NO CORRIENTES",null,0,0]
["4.3 - DISMINUCIÓN DE FONDOS DE TERCEROS",null,{"$f":"+C83","v":0},0]
["4.3.5 - DISMINUCIÓN DEPÓSITOS FONDOS DE TERCEROS",null,0,0]
["TOTAL APLICACIONES FINANCIERAS",null,{"$f":"+C76+C79+C82","v":0},0,0]
[]
["TOTAL GASTOS Y APLICACIONES FINANCIERAS",null,{"$f":"+C73+C84","v":{"v":3496176.22,"d":"3,496,176.22"}},{"$f":"+D73+D84","v":{"v":3518238.86,"d":"3,518,238.86"}},{"$f":"+E73+E84","v":{"v":5505812.85,"d":"5,505,812.85"}},{"$f":"+F73+F84","v":{"v":5417512.26,"d":"5,417,512.26"}}]
["Fuente: 0100"]
["Fecha de registro: hasta el 30 de abril del 2023"]
["Fecha de imputación: hasta el 30 de abril del 2023"]
[]
[]
[]
[]
[]
[null,"Esthel Mora",{"$nulls":8},"Nestina Contreras"]
[null,"Preparo por:",{"$nulls":8},"Revisado por:"]
[null,"Analista de Presupuesto",{"$nulls":8},"Encargada Admistrativa Financiera"]